Cogmind - Beta 15 @@@ ROGUE MODE // 2025.07.10 @ 20:34:57 Player: Dingot Result: Destroyed by G-50 Soldier with Heavy Laser Performance ------------- Evolutions (4) 2000 Regions Visited (7) 1400 Robots Destroyed (0) 0 Value Destroyed (0) 0 Prototype IDs (0) 0 Alien Tech Used (0) 0 Bonus (1825) 1825 TOTAL SCORE: 5225 Bonus ------- Pacifist 1325 Entered DSFs 500 Cogmind --------- Core Integrity 0/850 Matter 214/300 Energy 98/100 System Corruption 0% Temperature Cool (9) Movement Core (50) Location -6/Lower Caves Parts ------- > --- POWER (1) -------- (None) > --- PROPULSION (6) --- (None) > --- UTILITY (6) ------ (None) > --- WEAPON (2) ------- (None) > --- INVENTORY (5) ---- Light Deuterium Engine Improved System Shield Improved System Shield Improved System Shield Improved System Shield Peak State ------------ > --- POWER ------------ (None) > --- PROPULSION ------- (None) > --- UTILITY ---------- (None) > --- WEAPON ----------- (None) > --- INVENTORY -------- Light Deuterium Engine Improved System Shield Improved System Shield Improved System Shield Improved System Shield [Rating: 2] Favorites ----------- Power None Propulsion None Utility None Weapon None Build | -11 -10 -9 -8 -7 -7 -6 -6 ------- Run | Yrd Mat Mat Mat Fac DSF Fac Low Slots Evolved 8 | . . 2 2 2 . 2 . Power . | . . . . . . . . Propulsion 4 | . . 2 . . . 2 . Utility 4 | . . . 2 2 . . . Weapon . | . . . . . . . . Parts Attached . | . . . . . . . . Power . | . . . . . . . . Engine . | . . . . . . . . Core . | . . . . . . . . Reactor . | . . . . . . . . Propulsion . | . . . . . . . . Treads . | . . . . . . . . Leg . | . . . . . . . . Wheel . | . . . . . . . . Hover . | . . . . . . . . Flight . | . . . . . . . . Utility . | . . . . . . . . Device . | . . . . . . . . Storage . | . . . . . . . . Processor . | . . . . . . . . Hackware . | . . . . . . . . Protection . | . . . . . . . . Artifact . | . . . . . . . . Weapon . | . . . . . . . . Energy Gun . | . . . . . . . . Energy Cannon . | . . . . . . . . Ballistic Gun . | . . . . . . . . Ballistic Cannon . | . . . . . . . . Launcher . | . . . . . . . . Special Weapon . | . . . . . . . . Impact Weapon . | . . . . . . . . Slashing Weapon . | . . . . . . . . Piercing Weapon . | . . . . . . . . Special Melee Weapon . | . . . . . . . . Unidentified Prototypes . | . . . . . . . . Parts Lost . | . . . . . . . . Power . | . . . . . . . . Propulsion . | . . . . . . . . Utility . | . . . . . . . . Weapon . | . . . . . . . . Highest Loss Streak . | . . . . . . . . To Critical Strikes . | . . . . . . . . Average Backups 2 | . . . . 1 2 5 5 Power . | . . . . 1 1 1 1 Propulsion . | . . . . . . . . Utility 1 | . . . . . 1 4 4 Weapon . | . . . . . . . . Tool/Special . | . . . . . . . . Unused Backups 5 | . . . . . . . 5 Power 1 | . . . . . . . 1 Propulsion . | . . . . . . . . Utility 4 | . . . . . . . 4 Weapon . | . . . . . . . . Tool/Special . | . . . . . . . . Average Slot Usage (%) . | . . . . . . . . Peak Build Rating 2 | . . . . . 2 2 2 Average Rating . | . . . . . . 2 2 On Entrance . | . . . . . . 2 2 Naked Turns 511 | . 31 99 57 3 112 73 136 Heaviest Build . | . . . . . . . . Greatest Support 3 | 3 3 3 3 3 3 3 3 Greatest Overweight (x) . | . . . . . . . . Average Overweight (x) . | . . . . . . . . Largest Inventory Capacity 5 | 5 5 5 5 5 5 5 5 Average Capacity 5 | 5 5 5 5 5 5 5 5 Most Carried 5 | . . . 1 1 5 5 5 Average Carried 2 | . . . . 1 2 5 5 Final Capacity 5 | 5 5 5 5 5 5 5 5 Final Carried 5 | . . . 1 1 5 5 5 Class Distribution -------------------- 100% | Mutant Dominant Class ---------------- Mutant | -10/Materials Mutant | -9/Materials Mutant | -8/Materials Mutant | -7/Factory Mutant | -7/DSF Mutant | -6/Factory Mutant | -6/Lower Caves Resources | -11 -10 -9 -8 -7 -7 -6 -6 ----------- Run | Yrd Mat Mat Mat Fac DSF Fac Low Matter Collected 104 | 55 . . . . . . 49 Remotely . | . . . . . . . . Salvage Created . | . . . . . . . . Parts . | . . . . . . . . Haulers Intercepted . | . . . . . . . . Recyclers Shooed 1 | . . . . . . 1 . Parts Field Recycled . | . . . . . . . . Retrieved Matter . | . . . . . . . . Parts Self-Destructed 1 | . . . . . . . 1 Prevented . | . . . . . . . . Kills | -11 -10 -9 -8 -7 -7 -6 -6 ------- Run | Yrd Mat Mat Mat Fac DSF Fac Low Combat Hostiles Destroyed . | . . . . . . . . Classes Destroyed . | . . . . . . . . Best Kill Streak . | . . . . . . . . Combat Bots Only . | . . . . . . . . Max Kills in Single Turn . | . . . . . . . . Gunslinging . | . . . . . . . . Exploded . | . . . . . . . . Melee . | . . . . . . . . Uniques/NPCs Destroyed . | . . . . . . . . Combat | -11 -10 -9 -8 -7 -7 -6 -6 -------- Run | Yrd Mat Mat Mat Fac DSF Fac Low Hostile Shots Fired 205 | . . 38 37 . 48 29 53 Missed 84 | . . 11 13 . 20 13 27 Hits 121 | . . 27 24 . 28 16 26 Melee 8 | . . 1 1 . 6 . . Projectile 113 | . . 26 23 . 22 16 26 AOE 1 | . . . . . 1 . . Critical Strikes 4 | . . 1 . . 3 . . Damage Taken 1910 | . . 354 388 . 303 399 466 Core 1910 | . . 354 388 . 303 399 466 Absorbed by Shields 10 | . . . . . 10 . . Core Remaining (%) 59 | 100 100 11 29 . 56 . . Volleys Fired . | . . . . . . . . Largest . | . . . . . . . . Hottest . | . . . . . . . . Shots Fired . | . . . . . . . . Gun . | . . . . . . . . Cannon . | . . . . . . . . Launcher . | . . . . . . . . Special . | . . . . . . . . Kinetic . | . . . . . . . . Thermal . | . . . . . . . . Explosive . | . . . . . . . . Electromagnetic . | . . . . . . . . Robot Hit Streak . | . . . . . . . . Robot Miss Streak . | . . . . . . . . Penetration Max . | . . . . . . . . Secondary Targets . | . . . . . . . . Shots Hit Robots . | . . . . . . . . Core Hits . | . . . . . . . . Critical Kills . | . . . . . . . . Critical Parts Destroyed . | . . . . . . . . Critical Strikes . | . . . . . . . . Melee Attacks . | . . . . . . . . Impact . | . . . . . . . . Slashing . | . . . . . . . . Piercing . | . . . . . . . . Sneak Attacks . | . . . . . . . . Combat Hostiles . | . . . . . . . . Follow-up Attacks . | . . . . . . . . Damage Inflicted 11 | . . . . . . 11 . Guns . | . . . . . . . . Cannons . | . . . . . . . . Explosions . | . . . . . . . . Melee . | . . . . . . . . Ramming 11 | . . . . . . 11 . Kinetic . | . . . . . . . . Thermal . | . . . . . . . . Explosive . | . . . . . . . . Electromagnetic . | . . . . . . . . Impact . | . . . . . . . . Slashing . | . . . . . . . . Piercing . | . . . . . . . . Highest Corruption . | . . . . . . . . Average Corruption . | . . . . . . . . Corruption Purged . | . . . . . . . . Corruption Blocked . | . . . . . . . . Overload Shots . | . . . . . . . . Overflow Damage . | . . . . . . . . Projectiles . | . . . . . . . . Explosions . | . . . . . . . . Melee . | . . . . . . . . Knockbacks 1 | . . . . . . 1 . Impact 1 | . . . . . . 1 . Kinetic . | . . . . . . . . Secondary . | . . . . . . . . Self-Inflicted Damage 5 | . . . . . . 5 . Shots . | . . . . . . . . Rammed 2 | . . . . . . 2 . Targets Rammed 2 | . . . . . . 2 . Kicked . | . . . . . . . . Crushed . | . . . . . . . . Highest Temperature . | . . . . . . . . Average Temperature . | . . . . . . . . Received Heat Transfer 495 | . . 141 153 . 54 66 81 Siege Activations . | . . . . . . . . Martial Activations . | . . . . . . . . Shielding Activations . | . . . . . . . . Robots Disrupted . | . . . . . . . . Combat Hostiles . | . . . . . . . . Robots Corrupted . | . . . . . . . . Combat Hostiles . | . . . . . . . . Parts Fried . | . . . . . . . . Impact Corruptions . | . . . . . . . . Robots Melted . | . . . . . . . . Combat Hostiles . | . . . . . . . . Parts Melted . | . . . . . . . . Heat Transferred . | . . . . . . . . Parts Sabotaged . | . . . . . . . . Parts Stolen . | . . . . . . . . Parts Stripped . | . . . . . . . . Power Chain Reactions . | . . . . . . . . Alert | -11 -10 -9 -8 -7 -7 -6 -6 ------- Run | Yrd Mat Mat Mat Fac DSF Fac Low Maximum Alert Level . | . . . . . . . . Low Security (%) 100 | 100 100 100 100 100 100 100 . Level 1 . | . . . . . . . . Level 2 . | . . . . . . . . Level 3 . | . . . . . . . . Level 4 . | . . . . . . . . Level 5 . | . . . . . . . . High Security . | . . . . . . . . Max Security . | . . . . . . . . Peak Influence 90 | . . 15 90 40 58 75 . Initial 40 | . . . 5 40 28 30 . Average 18 | . . . 16 40 33 29 . Influence Increases 345 | . . 15 90 . 30 75 135 Lose Combat Pursuer 345 | . . 15 90 . 30 75 135 Influence Decreases 224 | . . . 15 50 12 58 89 Entered New Map 129 | . . . 10 50 12 28 29 Time Decay 95 | . . . 5 . . 30 60 Squads Dispatched 3 | . . 1 . . 1 1 . Investigation . | . . . . . . . . Extermination . | . . . . . . . . Reinforcement 3 | . . 1 . . 1 1 . Assault . | . . . . . . . . Garrison . | . . . . . . . . Intercept . | . . . . . . . . Searches Triggered . | . . . . . . . . Construction Impeded . | . . . . . . . . Haulers Reinforced . | . . . . . . . . Active Scanning Responses . | . . . . . . . . Cargo Convoy Interrupts . | . . . . . . . . Stealth | -11 -10 -9 -8 -7 -7 -6 -6 --------- Run | Yrd Mat Mat Mat Fac DSF Fac Low Distress Signals 1 | . . 1 . . . . . Communications Jammed . | . . . . . . . . Distress Signals . | . . . . . . . . Times Spotted 58 | . . 11 12 . 5 11 19 Peak Tracking Total 14 | . . 10 14 . 4 11 10 Tactical Retreats 7 | . . 1 1 . 1 1 3 Traps | -11 -10 -9 -8 -7 -7 -6 -6 ------- Run | Yrd Mat Mat Mat Fac DSF Fac Low Traps Triggered 3 | . . 1 1 . 1 . . Indirectly . | . . . . . . . . Trap Hack Attempts . | . . . . . . . . Triggered . | . . . . . . . . Disarmed . | . . . . . . . . Reprogrammed . | . . . . . . . . Reused . | . . . . . . . . Traps Extracted . | . . . . . . . . Installed . | . . . . . . . . Triggered . | . . . . . . . . Machines | -11 -10 -9 -8 -7 -7 -6 -6 ---------- Run | Yrd Mat Mat Mat Fac DSF Fac Low Machines Disabled . | . . . . . . . . Max in Single Turn . | . . . . . . . . Machines Repaired . | . . . . . . . . Machines Dismantled . | . . . . . . . . Machines Sabotaged . | . . . . . . . . Overloaded Fab Kills . | . . . . . . . . Hacking | -11 -10 -9 -8 -7 -7 -6 -6 --------- Run | Yrd Mat Mat Mat Fac DSF Fac Low Machines Accessed 1 | . . . . 1 . . . Terminals 1 | . . . . 1 . . . Fabricators . | . . . . . . . . Repair Stations . | . . . . . . . . Recycling Units . | . . . . . . . . Scanalyzers . | . . . . . . . . Garrison Access . | . . . . . . . . Total Hacks 1 | . . . . 1 . . . Successful 1 | . . . . 1 . . . Failed . | . . . . . . . . Catastrophic . | . . . . . . . . Database Lockouts . | . . . . . . . . Manual . | . . . . . . . . Terminals 1 | . . . . 1 . . . Fabricators . | . . . . . . . . Repair Stations . | . . . . . . . . Recycling Units . | . . . . . . . . Scanalyzers . | . . . . . . . . Garrison Access . | . . . . . . . . Terminal Hacks 1 | . . . . 1 . . . Open DSF 1 | . . . . 1 . . . Fabricator Hacks . | . . . . . . . . Repair Station Hacks . | . . . . . . . . Recycling Unit Hacks . | . . . . . . . . Scanalyzer . | . . . . . . . . Garrison Access Hacks . | . . . . . . . . Unauthorized Hacks . | . . . . . . . . Terminals . | . . . . . . . . Fabricators . | . . . . . . . . Repair Stations . | . . . . . . . . Recycling Units . | . . . . . . . . Scanalyzers . | . . . . . . . . Garrison Access . | . . . . . . . . Data Cores Recovered . | . . . . . . . . Used . | . . . . . . . . Hacking Detections . | . . . . . . . . Full Trace Events . | . . . . . . . . Feedback Events . | . . . . . . . . Feedback Blocked . | . . . . . . . . Robot Schematics Acquired . | . . . . . . . . Robots Built . | . . . . . . . . Authchips . | . . . . . . . . Time . | . . . . . . . . Total Robot Build Rating . | . . . . . . . . Part Schematics Acquired . | . . . . . . . . Parts Built . | . . . . . . . . Authchips . | . . . . . . . . Time . | . . . . . . . . Total Part Build Rating . | . . . . . . . . Parts Repaired . | . . . . . . . . Time . | . . . . . . . . Parts Recycled . | . . . . . . . . Recycled Matter . | . . . . . . . . Retrieved Matter . | . . . . . . . . Retrieved Components . | . . . . . . . . Parts Scanalyzed . | . . . . . . . . Part Schematics Acquired . | . . . . . . . . Parts Damaged . | . . . . . . . . Bothacking | -11 -10 -9 -8 -7 -7 -6 -6 ------------ Run | Yrd Mat Mat Mat Fac DSF Fac Low Used RIF Installer . | . . . . . . . . Robots Hacked . | . . . . . . . . Non-combat . | . . . . . . . . Combat . | . . . . . . . . Robot Hacks Applied . | . . . . . . . . Relay Couplers Released . | . . . . . . . . Fabnet Peak Effective % . | . . . . . . . . Robots Rewired . | . . . . . . . . Allies Hacked . | . . . . . . . . Hacks Repelled . | . . . . . . . . Allies | -11 -10 -9 -8 -7 -7 -6 -6 -------- Run | Yrd Mat Mat Mat Fac DSF Fac Low Total Allies . | . . . . . . . . Largest Group . | . . . . . . . . Highest-Rated Group . | . . . . . . . . Highest-Rated Ally . | . . . . . . . . Total Orders . | . . . . . . . . Ally Attacks . | . . . . . . . . Total Damage . | . . . . . . . . Kills . | . . . . . . . . Allies Corrupted . | . . . . . . . . Allies Melted . | . . . . . . . . Intel | -11 -10 -9 -8 -7 -7 -6 -6 ------- Run | Yrd Mat Mat Mat Fac DSF Fac Low Active Infowar (turns) . | . . . . . . . . Robot Analysis Total . | . . . . . . . . Derelict Logs Recovered . | . . . . . . . . Drone Launches . | . . . . . . . . Drone Recoveries . | . . . . . . . . Exploration | -11 -10 -9 -8 -7 -7 -6 -6 ------------- Run | Yrd Mat Mat Mat Fac DSF Fac Low Turns Passed 520 | 9 31 99 57 3 112 73 136 Spaces Moved 902 | 18 62 185 112 5 107 141 272 Core 902 | 18 62 185 112 5 107 141 272 Treads . | . . . . . . . . Legs . | . . . . . . . . Wheels . | . . . . . . . . Hover . | . . . . . . . . Flight . | . . . . . . . . Fastest Speed 50 | 50 50 50 50 50 50 50 50 Average Speed 50 | 50 50 50 50 50 50 50 50 Slowest Speed 50 | 50 50 50 50 50 50 50 50 Overloaded Moves . | . . . . . . . . Propulsion Burnouts . | . . . . . . . . Robots Hopped . | . . . . . . . . Potential Cave-ins . | . . . . . . . . Cave-ins Triggered . | . . . . . . . . Exploration Rate (%) 27 | 3 17 24 18 1 91 5 58 Regions Visited 7 Branch Regions 1 Pre-discovered Areas . | . . . . . . . . Known Exits Taken 1 | . . . . 1 . . . Unknown Exits Taken 5 | 1 1 1 1 . . 1 . Scrap Searched 2 | . . . . . . . 2 Spaces Dug . | . . . . . . . . Terrain Destroyed . | . . . . . . . . Melee . | . . . . . . . . Projectile . | . . . . . . . . AOE . | . . . . . . . . Terrain Rammed . | . . . . . . . . Walls Destroyed . | . . . . . . . . Machines Disabled . | . . . . . . . . Actions | -11 -10 -9 -8 -7 -7 -6 -6 --------- Run | Yrd Mat Mat Mat Fac DSF Fac Low Total 962 | 17 61 190 112 4 164 142 272 Wait 50 | . . 6 . . 44 . . Move 895 | 17 61 184 111 4 106 140 272 Hop . | . . . . . . . . Pick Up 5 | . . . 1 . 4 . . Fast Attach . | . . . . . . . . Attach . | . . . . . . . . Detach . | . . . . . . . . Swap . | . . . . . . . . Drop . | . . . . . . . . Fire . | . . . . . . . . Melee . | . . . . . . . . Ram 2 | . . . . . . 2 . Kick . | . . . . . . . . Crush . | . . . . . . . . Escape Stasis 10 | . . . . . 10 . . Rewire . | . . . . . . . . Trap . | . . . . . . . . Miscellaneous . | . . . . . . . . Route ------- -11/Scrapyard -10/Materials -9/Materials -8/Materials -7/Factory -7/DSF -6/Factory -6/Lower Caves History --------- Turn | Location | Event 4 | -11/Scrapyard | Discovered new exit (range 13) 10 | -11/Scrapyard | Entered Materials 34 | -10/Materials | Discovered new exit (range 16) 41 | -10/Materials | Entered another Materials area 41 | -9/Materials | Evolved 2 slots: Propulsion x2 129 | -9/Materials | Core integrity fell below 50% 135 | -9/Materials | Core integrity fell below 20% 139 | -9/Materials | Discovered new exit (range 3) 140 | -9/Materials | Entered another Materials area 140 | -8/Materials | Evolved 2 slots: Utility x2 169 | -8/Materials | Core integrity fell below 50% 193 | -8/Materials | Discovered new exit (range 10) 197 | -8/Materials | Entered Factory 197 | -7/Factory | Evolved 2 slots: Utility x2 200 | -7/Factory | Identified exit to DSF 200 | -7/Factory | Entered DSF 221 | -7/DSF | Additional patrols routed to DSF 304 | -7/DSF | Discovered new exit (range 14) 305 | -7/DSF | Build established: Mutant 312 | -7/DSF | Entered Factory 312 | -6/Factory | Evolved 2 slots: Propulsion x2 377 | -6/Factory | Discovered new exit (range 14) 385 | -6/Factory | Entered Lower Caves 391 | -6/Lower Caves | Attracted the attention of an 0b10 outpost 391 | -6/Lower Caves | Core integrity fell below 50% 452 | -6/Lower Caves | Core integrity fell below 20% 507 | -6/Lower Caves | Ambushed by wild Derelicts 521 | -6/Lower Caves | Destroyed by G-50 Soldier with Heavy Laser Last Messages --------------- DERELICT." 00394_ Slug penetrates L-41 Fighter. 00395_ Y-64 Sentinel: "REQUESTING BACKUP." 00419_ LX-UWP(k) breaks down the debris. 00425_ LX-UWP(k) destroyed. 00438_ Searching scrap... 00438_ Found Adv. Signal Interpreter. 00438_ Found Hardlight Generator. 00438_ Found Imp. Trap Scanner. 00438_ Found 37 Matter. 00473_ Searching scrap... 00473_ Found Com. Battery. 00473_ Found Recalibrator. 00473_ Found 49 Matter. 00474_ Acquired 49 matter. 00506_ C-30 ARC bursts open, deploying its payload. 00506_ S-27 Virus unfolds itself. 00507_ LM-JAW(g): "Wake up, everyone! Fresh metal!" Map ----- +----------------------------------------------------+ | ?????????????????????????????????????????????????? | | ?????????????????????????????????????????????????? | | ?????????????????????????????????????????????????? | | ?????????????????????????????????????????????????? | | ?????????????????????????????????????????????????? | | ?????????????????????????????????????????????????? | | ?????????????????????????????????????????????????? | | ?????????????????????????????????????????????????? | | ?????????????????????????????????????????????????? | | ?????????????????????????????????????????????????? | | ?????????????????????????????????????????????????? | | ?????????????????????????????????????????????????? | | ?????????????????????????????????????????????????? | | ?????????????????????????????????????????????????? | | ?????????????????????????????????????????????????? | | ??????????????????????????????? ????????????????? | | ??????????????????????????????? ???????????????? | | ???????????? #???#????????????? ??? ????????? | | ????????????? ??# ??????????? ??? #?????????? | | ??????????????# ## ?????????? #?? ##????????? | | ???????????????? ######???? #?? #????????? | | ?????????????????# #???# #?# #????????? | | ????????? ##### #??? #? #?????????? | | ????????? #??? #? #?????????? | | ????????? ####g #?# ##????????? | | ????????????????## @ g#???# ##?????? | | ?????????????????# ##### ##????? | | ?????????????????# #?????? | | ????????????????# ### ## ##?????? | | ????????????????# ???## ## ##????? | | ????????????????#?????## ### #????? | | ???????????????????????#### ##?# ##???? | | ??????????????????????????## #### #???? | | ???????????????????????????# ## #???? | | ???????????????????????????## ## %" #??????? | | ????????????????????????????# ### " #???#### | | ????????????????????????????## ### ##### | | ?????????????????????????????###?# | | ????????????????????????????????## | | ????????????????????????????????# | | ????????????????????????????????## ######## | | ?????????????????????????????????###### #???????? | | ?????????????????????????????????? ## ######### | | ???????????????????????????????????# # | | ???????????????????????????????????## | | ???????????????????????????????????# ####### | | ???????????????????????????????????# ######?????? | | ???????????????????????????????????####??????????? | | ?????????????????????????????????????????????????? | | ?????????????????????????????????????????????????? | +----------------------------------------------------+ Best States ------------- Heat Dissipation 37 Energy Generation 5 Energy Capacity 100 Matter Stores 214 Matter Capacity 300 Sight Range 16 Terrain Scan Density 10 Evasion (%) 50 Item Schematics ----------------- None Robot Schematics ------------------ None Fabricated ------------ Nothing Repaired ---------- Nothing Alien Tech Used ----------------- None Achievements -------------- None Challenges ------------ None Game ------ Seed AutogunWeightDiverter Manual? 0 Play Time 00:13:18 Cumulative 18.3 hours Start 2025.07.10 @ 20:23:51 End 2025.07.10 @ 20:34:57 Sessions 1 Manual Loads 0 Difficulty Rogue Special Mode None Game No. 23 Rogue 23 Adventurer 0 Explorer 0 Win Type - Total 0 Types 0/0/0/0/0/0/0/0/0/0 Lore% 17 Gallery% 18 Achievement% 24 Wizard Run 0 Options --------- Layout 1 ASCII 0 Keyboard 0 Movement Mouse Keybinds 0 Fullscreen 1 Font 24/Smallcaps Map View 50x35 Zoom Use 0% Tactical HUD 1 Map Filters NONE Filters NONE Steam 1 RUN: 09767cf1-95d0-4534-8a2d-b1b83cf5ce74